bitfinex/quotes_BTCUSD_20220101
["timestamp","ask_amount","ask_price","bid_price","bid_amount"]
[1641066707298,0.00010955,47337.0,47336.0,0.67678961]
[1641066707499,0.00010955,47337.0,47336.0,0.65499911]
[1641066708352,0.00010955,47337.0,47336.0,0.65287836]
[1641066709955,0.00010955,47337.0,47336.0,0.67310853]
[1641066710153,0.00010955,47337.0,47336.0,0.65400017]
[1641066710354,0.00010955,47337.0,47336.0,0.67352536]
[1641066710557,0.00010955,47337.0,47336.0,0.65329519]
[1641066711355,0.00010955,47337.0,47336.0,0.6729195]
[1641066711611,0.00010955,47337.0,47336.0,0.65339431]
[1641066712214,0.00010955,47337.0,47336.0,0.67337407]
[1641066712512,0.00010955,47337.0,47336.0,0.65374976]
[1641066713311,0.00010955,47337.0,47336.0,0.67333552]
[1641066713511,0.00010955,47337.0,47336.0,0.65335576]
[1641066714214,1.28974455,47337.0,47336.0,0.65335576]
[1641066714411,1.28974455,47337.0,47336.0,0.67219447]
[1641066714613,1.66624437,47337.0,47336.0,0.65260871]
[1641066715461,1.66624437,47337.0,47336.0,0.6545652]
[1641066716259,1.66624437,47337.0,47336.0,0.67385444]
[1641066716459,1.66624437,47337.0,47336.0,0.65305924]
[1641066717263,1.66624437,47337.0,47336.0,0.67224631]
[1641066717464,1.66624437,47337.0,47336.0,0.65295707]
[1641066718363,1.66624437,47337.0,47336.0,0.67268772]
[1641066718565,1.66624437,47337.0,47336.0,0.65350065]
[1641066719411,1.66624437,47337.0,47336.0,0.66448848]
[1641066719608,1.66624437,47337.0,47336.0,0.64475783]
[1641066720009,1.28974455,47337.0,47336.0,0.64475783]
[1641066720414,1.28974455,47337.0,47336.0,0.66404352]
[1641066720612,1.289635,47337.0,47336.0,0.65305569]
[1641066721314,1.289635,47337.0,47336.0,0.67124639]
[1641066722114,1.289635,47337.0,47336.0,0.65305569]
[1641066722314,1.289635,47337.0,47336.0,0.65469027]
[1641066722964,0.95,47337.0,47336.0,0.65469027]
[1641066723370,1.289635,47337.0,47336.0,0.67368153]
[1641066723563,1.289635,47337.0,47336.0,0.65276126]
[1641066724569,1.28763093,47337.0,47336.0,0.65276126]
[1641066724965,1.28763093,47337.0,47336.0,0.67221782]
[1641066725164,1.28763093,47337.0,47336.0,0.65322656]
[1641066725465,1.28763093,47337.0,47336.0,0.67210868]
[1641066725765,1.28763093,47337.0,47336.0,0.65265212]
[1641066726364,1.28763093,47337.0,47336.0,0.6739496]
[1641066726612,1.28763093,47337.0,47336.0,0.65506748]
[1641066727312,1.28763093,47337.0,47336.0,0.67414743]
[1641066727513,1.28763093,47337.0,47336.0,0.65284995]
[1641066728313,1.28763093,47337.0,47336.0,0.67233596]
[1641066728514,0.339635,47337.0,47336.0,0.65325601]
[1641066728714,0.00129439,47338.0,47336.0,0.65325601]
[1641066729415,0.10562023,47339.0,47336.0,0.67387727]
[1641066729619,0.10562023,47339.0,47336.0,0.65439126]
[1641066729816,0.0001278,47338.0,47336.0,0.65439126]
[1641066730116,0.00010955,47337.0,47336.0,0.65439126]
[1641066730361,0.00010955,47337.0,47336.0,0.67471032]
[1641066730660,0.00010955,47337.0,47336.0,0.65408906]
[1641066731363,0.00010955,47337.0,47336.0,0.67234543]
[1641066731560,0.00010955,47337.0,47336.0,0.65202637]
[1641066732364,0.00010955,47337.0,47336.0,0.67316458]
[1641066732563,0.00010955,47337.0,47336.0,0.65490821]
[1641066733363,0.00010955,47337.0,47336.0,0.67653391]
[1641066733564,0.00010955,47337.0,47336.0,0.6553957]
[1641066733966,0.00010955,47337.0,47336.0,0.9353957]
[1641066734219,0.00010955,47337.0,47336.0,0.6553957]
[1641066734420,0.00010955,47337.0,47336.0,0.67709239]
[1641066735222,0.00010955,47337.0,47336.0,0.63377]
[1641066735421,0.00010955,47337.0,47336.0,0.65323322]
[1641066736523,0.00010955,47337.0,47336.0,0.67169656]
[1641066736724,0.00010955,47337.0,47336.0,0.65223334]
[1641066737424,0.00010955,47337.0,47336.0,0.67143927]
[1641066737628,0.00010955,47337.0,47336.0,0.65297593]
[1641066738456,0.00010955,47337.0,47336.0,0.67196188]
[1641066738656,0.00010955,47337.0,47336.0,0.65275595]
[1641066739057,0.10501922,47339.0,47336.0,0.65275595]
[1641066739456,0.10501922,47339.0,47336.0,0.67312132]
[1641066739657,0.10501922,47339.0,47336.0,0.65413537]
[1641066740457,0.10501922,47339.0,47336.0,0.67525232]
[1641066740658,0.339635,47338.0,47336.0,0.67525232]
[1641066740957,0.10501922,47339.0,47336.0,0.67525232]
[1641066741163,0.10501922,47339.0,47336.0,0.63377]
[1641066741600,0.10501922,47339.0,47336.0,0.65340326]
[1641066742002,0.15783722,47339.0,47336.0,0.65340326]
[1641066742403,0.15783722,47339.0,47336.0,0.67189017]
[1641066742603,0.15783722,47339.0,47336.0,0.65225691]
[1641066743203,0.339635,47338.0,47336.0,0.65225691]
[1641066743402,0.339635,47338.0,47336.0,0.67344543]
[1641066743603,0.15783722,47339.0,47336.0,0.65495852]
[1641066744404,0.10501922,47339.0,47336.0,0.66551852]
[1641066744607,0.10501922,47339.0,47336.0,0.64433]
[1641066745476,0.10501922,47339.0,47336.0,0.65463216]
[1641066745773,0.10501922,47339.0,47336.0,0.64407216]
[1641066746574,0.10501922,47339.0,47336.0,0.66294349]
[1641066746774,0.10501922,47339.0,47336.0,0.65264133]
[1641066747177,0.10501922,47339.0,47338.0,0.24720433]
[1641066747375,0.05220922,47339.0,47338.0,0.24720433]
[1641066749313,0.05220922,47339.0,47338.0,0.24563524]
[1641066749514,0.05220922,47339.0,47336.0,0.66367471]
[1641066749714,0.10502522,47339.0,47336.0,0.65278128]
[1641066750516,0.10502522,47339.0,47336.0,0.66249848]
[1641066750713,0.10502522,47339.0,47336.0,0.6434872]
[1641066751513,0.10502522,47339.0,47336.0,0.65388923]
[1641066751713,0.10502522,47339.0,47336.0,0.64417203]
[1641066752517,0.10502522,47339.0,47336.0,0.65395133]
[1641066752715,0.10502522,47339.0,47336.0,0.6435493]
[1641066753570,0.339635,47338.0,47336.0,0.65447021]
[1641066753772,0.339635,47338.0,47336.0,0.64469091]
[1641066754372,0.47795471,47339.0,47336.0,0.64469091]
[1641066754773,0.10502522,47339.0,47336.0,0.64469091]
[1641066755175,0.10502522,47339.0,47336.0,0.66327482]
[1641066755374,0.339635,47338.0,47336.0,0.65235391]
[1641066755575,0.82467191,47338.0,47336.0,0.67202931]
[1641066755779,0.82467191,47338.0,47336.0,0.6534454]
[1641066756717,1.51582564,47337.0,47336.0,0.66376721]
[1641066756918,1.90266064,47337.0,47324.0,0.00011]
[1641066757217,0.00123777,47325.0,47324.0,0.00011]
[1641066757617,0.00123777,47325.0,47324.0,0.00034736]
[1641066757916,1.47087277,47325.0,47324.0,0.00034736]
[1641066758716,1.48967609,47325.0,47324.0,0.00034736]
[1641066759217,1.93238817,47325.0,47324.0,0.00034736]
[1641066759417,2.08238817,47325.0,47324.0,0.00034736]
[1641066759819,2.10077919,47325.0,47324.0,0.00034736]
[1641066760019,2.06790484,47325.0,47324.0,0.00023736]
[1641066760223,1.18408844,47323.0,47322.0,0.00011]
[1641066760477,1.94640827,47323.0,47322.0,0.00011]
[1641066760679,2.04640827,47323.0,47322.0,0.00011]
[1641066761677,2.06495223,47323.0,47322.0,0.00011]
[1641066762780,2.08472518,47323.0,47322.0,0.00011]
[1641066762979,1.522478,47322.0,47317.0,0.00022]
[1641066763179,0.00129715,47318.0,47317.0,0.00022]
[1641066763383,1.47093215,47318.0,47317.0,0.00022]
[1641066763580,1.85656616,47318.0,47317.0,0.00022]
[1641066764806,1.87510149,47318.0,47317.0,0.00022]
[1641066765005,1.48946748,47318.0,47317.0,0.00022]
[1641066765804,1.50808902,47318.0,47317.0,0.00022]
[1641066766010,1.48955369,47318.0,47317.0,0.00022]
[1641066766407,1.86181553,47318.0,47317.0,0.00022]
[1641066766709,1.48955369,47318.0,47317.0,0.00022]
[1641066766907,1.48994802,47318.0,47317.0,0.00022]
[1641066767407,1.86463533,47318.0,47317.0,0.00022]
[1641066767607,1.86735932,47318.0,47317.0,0.00022]
[1641066767871,1.50894834,47318.0,47317.0,0.00022]
[1641066768066,1.48993247,47318.0,47317.0,0.00022]
[1641066768670,0.02029747,47318.0,47317.0,0.00022]
[1641066768866,0.03960935,47318.0,47317.0,0.00022]
[1641066769067,0.01931188,47318.0,47317.0,0.00022]
[1641066769669,1.14931188,47318.0,47317.0,0.00022]
[1641066770067,1.13,47318.0,47317.0,0.00022]
[1641066770767,1.14891772,47318.0,47317.0,0.00022]
[1641066771268,1.48855272,47318.0,47317.0,0.00022]
[1641066771908,1.48969175,47318.0,47317.0,0.00022]
[1641066772309,1.15005675,47318.0,47317.0,0.00022]
[1641066772911,1.16962638,47318.0,47317.0,0.00022]
[1641066773110,1.14956963,47318.0,47317.0,0.00022]
[1641066773914,1.1676684,47318.0,47317.0,0.00022]
[1641066774111,1.14809877,47318.0,47317.0,0.00022]
[1641066775559,1.14877093,47318.0,47317.0,0.00022]
[1641066775964,0.02054261,47318.0,47317.0,0.13384659]
[1641066776160,0.02054261,47318.0,47317.0,0.47893846]
[1641066776466,0.02054261,47318.0,47317.0,0.57951805]
[1641066776663,0.02054261,47318.0,47317.0,0.52348159]
[1641066776863,0.02054261,47318.0,47317.0,0.78167019]
[1641066777065,0.01924633,47321.0,47317.0,1.17734165]
[1641066777262,0.01924633,47321.0,47320.0,0.47326159]
[1641066777464,0.01924633,47321.0,47320.0,0.38853159]
[1641066778064,0.00925497,47323.0,47320.0,0.38853159]
[1641066778267,0.105652,47324.0,47322.0,0.13362659]
[1641066778464,0.105652,47324.0,47321.0,0.052825]
[1641066778465,0.105652,47324.0,47323.0,0.8134495]
[1641066778665,0.052825,47325.0,47323.0,0.8134495]
[1641066778866,0.052825,47325.0,47324.0,0.47399164]
[1641066779124,0.052825,47325.0,47324.0,0.81362664]
[1641066780326,0.052825,47325.0,47324.0,0.81347664]
[1641066781028,0.12746251,47334.0,47324.0,0.91629564]
[1641066781029,0.02181453,47334.0,47324.0,0.91629564]
[1641066781228,0.02181453,47334.0,47329.0,0.13362659]
[1641066781431,0.00012781,47331.0,47330.0,0.36538333]
[1641066781631,0.00012781,47331.0,47330.0,0.47326159]
[1641066781828,0.00012781,47331.0,47330.0,1.12251798]
[1641066782228,0.00012781,47331.0,47330.0,1.10518164]
[1641066782866,0.00012781,47331.0,47330.0,1.15807022]
[1641066785262,0.00012781,47331.0,47330.0,0.52615017]
[1641066785460,0.00012781,47331.0,47330.0,0.47333517]
[1641066785862,0.00012781,47331.0,47330.0,0.13370017]
[1641066786163,2.34442073,47331.0,47330.0,0.13370017]
[1641066786462,2.68405573,47331.0,47330.0,0.13370017]
[1641066786915,2.7020901,47331.0,47330.0,0.13370017]
[1641066787513,2.7020901,47331.0,47330.0,7.358e-05]
[1641066787912,2.72282774,47331.0,47330.0,7.358e-05]
[1641066788114,2.70479337,47331.0,47330.0,7.358e-05]
[1641066788915,2.72297738,47331.0,47330.0,7.358e-05]
[1641066789114,2.70223974,47331.0,47330.0,7.358e-05]
[1641066789914,2.72114598,47331.0,47330.0,7.358e-05]
[1641066790115,2.70296197,47331.0,47330.0,7.358e-05]
[1641066790960,2.72456634,47331.0,47330.0,7.358e-05]
[1641066791163,2.7056601,47331.0,47330.0,7.358e-05]
[1641066791960,2.72372995,47331.0,47330.0,7.358e-05]
[1641066792164,2.70212558,47331.0,47330.0,7.358e-05]
[1641066793564,2.72151993,47331.0,47330.0,7.358e-05]
[1641066793763,2.70345008,47331.0,47330.0,7.358e-05]
[1641066793966,2.72173035,47331.0,47330.0,7.358e-05]
[1641066794217,2.702336,47331.0,47330.0,7.358e-05]
[1641066795019,2.72119947,47331.0,47330.0,7.358e-05]
[1641066795217,2.7029192,47331.0,47330.0,7.358e-05]
[1641066796121,2.8234173,47331.0,47330.0,7.358e-05]
[1641066797121,2.8060465,47331.0,47330.0,7.358e-05]
[1641066797972,2.8260199,47331.0,47330.0,7.358e-05]
[1641066798171,2.80402913,47331.0,47330.0,7.358e-05]
[1641066798973,2.82469882,47331.0,47330.0,7.358e-05]
[1641066799170,2.80472542,47331.0,47330.0,7.358e-05]
[1641066799572,0.4604325,47331.0,47330.0,7.358e-05]
[1641066799977,0.47998213,47331.0,47330.0,7.358e-05]
[1641066800273,1.58931244,47331.0,47330.0,7.358e-05]
[1641066800573,1.96146105,47331.0,47330.0,7.358e-05]
[1641066800972,1.98062844,47331.0,47330.0,7.358e-05]
[1641066801173,1.5889302,47331.0,47330.0,7.358e-05]
[1641066802021,1.60940015,47331.0,47330.0,7.358e-05]
[1641066802221,1.59023276,47331.0,47330.0,7.358e-05]
[1641066803022,1.61173383,47331.0,47330.0,7.358e-05]
[1641066803224,1.59126388,47331.0,47330.0,7.358e-05]
[1641066804724,1.61268003,47331.0,47330.0,7.358e-05]
[1641066805363,1.56976281,47331.0,47330.0,7.358e-05]
[1641066805562,1.97223625,47331.0,47330.0,7.358e-05]
[1641066806060,1.99206307,47331.0,47330.0,7.358e-05]
[1641066806261,1.9715078,47331.0,47330.0,7.358e-05]
[1641066807061,1.99080663,47331.0,47330.0,7.358e-05]
[1641066807262,1.97097981,47331.0,47330.0,7.358e-05]
[1641066808064,1.98935455,47331.0,47330.0,7.358e-05]
[1641066808363,1.97005572,47331.0,47330.0,7.358e-05]
[1641066809211,1.99088961,47331.0,47330.0,7.358e-05]
[1641066809416,1.97251487,47331.0,47330.0,7.358e-05]
[1641066810112,1.99315838,47331.0,47330.0,7.358e-05]
[1641066810414,1.97232449,47331.0,47330.0,7.358e-05]
[1641066811013,1.99061378,47331.0,47330.0,7.358e-05]
[1641066811213,1.96997027,47331.0,47330.0,7.358e-05]
[1641066811712,1.96984246,47331.0,47330.0,7.358e-05]
[1641066812113,1.99056305,47331.0,47330.0,7.358e-05]
[1641066812314,1.97227376,47331.0,47330.0,7.358e-05]
[1641066813264,1.97213383,47331.0,47330.0,7.358e-05]
[1641066814064,1.99351825,47331.0,47330.0,7.358e-05]
[1641066814267,1.97293759,47331.0,47330.0,7.358e-05]
[1641066815069,1.99347875,47331.0,47330.0,7.358e-05]
[1641066815271,1.97209433,47331.0,47330.0,7.358e-05]
[1641066815871,1.59017616,47331.0,47330.0,7.358e-05]
[1641066816070,1.60852715,47331.0,47330.0,7.358e-05]
[1641066817123,1.62688542,47331.0,47330.0,7.358e-05]
[1641066817321,1.58799327,47331.0,47330.0,7.358e-05]
[1641066818127,1.60636337,47331.0,47330.0,7.358e-05]
[1641066818326,0.0183701,47331.0,47330.0,7.358e-05]
[1641066818924,0.0183701,47331.0,47330.0,0.13370017]
[1641066819125,0.4083701,47331.0,47330.0,0.13370017]
[1641066819326,0.39,47331.0,47330.0,0.38789825]
[1641066820127,0.4088452,47331.0,47330.0,0.38789825]
[1641066820572,0.4088452,47331.0,47330.0,0.74997788]
[1641066820775,0.0188452,47331.0,47330.0,0.74997788]
[1641066821173,0.03875971,47331.0,47330.0,0.74997788]
[1641066821375,0.01991451,47331.0,47330.0,0.74997788]
[1641066821575,0.01991451,47331.0,47330.0,7.358e-05]
[1641066822075,1.48954951,47331.0,47330.0,7.358e-05]
[1641066822474,1.58954951,47331.0,47330.0,7.358e-05]
[1641066822874,1.569635,47331.0,47330.0,7.358e-05]
[1641066823278,1.5884162,47331.0,47330.0,7.358e-05]
[1641066824324,1.60760898,47331.0,47330.0,7.358e-05]
[1641066825227,1.62765851,47331.0,47330.0,7.358e-05]
[1641066825425,1.58968453,47331.0,47330.0,7.358e-05]
[1641066825829,1.64091159,47331.0,47330.0,7.358e-05]
[1641066826027,1.64091159,47331.0,47317.0,0.00022]
[1641066826028,1.13,47330.0,47317.0,0.00022]
[1641066826226,0.21134771,47326.0,47317.0,0.00022]
[1641066826426,0.21134771,47326.0,47318.0,0.05294254]
[1641066826627,0.21134771,47326.0,47318.0,0.00010954]
[1641066826826,0.21134771,47326.0,47319.0,9.129e-05]
[1641066827026,0.71091218,47325.0,47319.0,9.129e-05]
[1641066827629,0.1585056,47323.0,47319.0,9.129e-05]
[1641066827886,0.00120873,47321.0,47319.0,9.129e-05]
[1641066828080,0.00120873,47321.0,47317.0,0.00022]
[1641066828081,1.13,47319.0,47317.0,0.00022]
[1641066828283,1.91250646,47318.0,47317.0,0.00022]
[1641066828483,1.65274649,47318.0,47315.0,0.00011]
[1641066828680,1.65274649,47318.0,47314.0,0.00022]
[1641066828681,0.00126136,47315.0,47314.0,0.00022]
[1641066828880,1.51809636,47315.0,47314.0,0.00022]
[1641066829081,1.51809636,47315.0,47314.0,0.00031129]
[1641066829082,1.61809636,47315.0,47314.0,0.00031129]
[1641066830380,1.63781578,47315.0,47314.0,0.00031129]
[1641066831910,1.65852933,47315.0,47314.0,0.00031129]
[1641066832810,2.57537243,47315.0,47314.0,0.00031129]
[1641066833012,2.53493946,47315.0,47314.0,0.00031129]
[1641066834011,1.65927529,47315.0,47314.0,0.00031129]
[1641066834214,1.63739737,47315.0,47314.0,0.00031129]
[1641066834411,1.65562711,47315.0,47314.0,0.00031129]
[1641066834611,1.6363261,47315.0,47314.0,0.00031129]
[1641066835014,1.5891261,47315.0,47314.0,0.00031129]
[1641066835478,1.24929598,47315.0,47314.0,0.00031129]
[1641066836479,1.24942823,47315.0,47314.0,0.00031129]
[1641066837277,1.26886255,47315.0,47314.0,0.00031129]
[1641066837480,1.25069568,47315.0,47314.0,0.00031129]
[1641066838280,1.27148941,47315.0,47314.0,0.00031129]
[1641066838582,1.25205509,47315.0,47314.0,0.00031129]
[1641066839419,1.27327043,47315.0,47314.0,0.00031129]
[1641066839719,1.1524767,47315.0,47314.0,0.00031129]
[1641066840419,1.17068165,47315.0,47314.0,0.00031129]
[1641066840619,1.14946631,47315.0,47314.0,0.00031129]
[1641066841423,1.1692424,47315.0,47314.0,0.00031129]
[1641066841622,1.15103745,47315.0,47314.0,0.00031129]
[1641066842523,1.1512724,47315.0,47314.0,0.00031129]
[1641066843381,1.17107496,47315.0,47314.0,0.00031129]
[1641066843577,1.15106392,47315.0,47314.0,0.00031129]
[1641066844378,1.17236706,47315.0,47314.0,0.00031129]
[1641066844580,1.1525645,47315.0,47314.0,0.00031129]
[1641066845382,1.1718312,47315.0,47314.0,0.00031129]
[1641066846282,1.13126136,47315.0,47314.0,0.00031129]
[1641066846482,1.1517179,47315.0,47314.0,0.00031129]
[1641066847511,0.04140302,47315.0,47314.0,0.00031129]
[1641066847714,0.01968512,47315.0,47314.0,0.00031129]
[1641066847915,0.01968512,47315.0,47314.0,0.13393788]
[1641066848112,0.01968512,47315.0,47314.0,0.87674392]
[1641066848714,0.105663,47321.0,47314.0,0.87674392]
[1641066848912,0.105663,47321.0,47319.0,0.13362659]
[1641066849115,0.105663,47321.0,47320.0,0.13362659]
[1641066849612,0.052836,47318.0,47315.0,7.303e-05]
[1641066850015,0.052836,47318.0,47317.0,0.052835]
[1641066850211,0.052836,47318.0,47315.0,7.303e-05]
[1641066850763,0.052836,47318.0,47317.0,0.13362659]
[1641066851666,0.052836,47318.0,47317.0,0.4864328]
[1641066853265,0.052836,47318.0,47317.0,0.13362659]
[1641066854331,0.052836,47318.0,47317.0,0.12862659]
[1641066856128,0.052836,47318.0,47315.0,7.303e-05]
[1641066856830,0.052843,47317.0,47315.0,7.303e-05]
[1641066857028,1.469635,47316.0,47315.0,7.303e-05]
[1641066857229,1.469635,47316.0,47315.0,0.12869962]
[1641066857429,1.619635,47316.0,47315.0,0.12869962]
[1641066858770,1.63996856,47316.0,47315.0,0.12869962]
[1641066859172,1.15033356,47316.0,47315.0,0.12869962]
[1641066859570,1.17151606,47316.0,47315.0,0.12869962]
[1641066859771,1.1511825,47316.0,47315.0,0.12869962]
[1641066860569,1.16961256,47316.0,47315.0,0.12869962]
[1641066860770,1.14843006,47316.0,47315.0,0.12869962]
[1641066861732,1.14862676,47316.0,47315.0,0.12869962]
[1641066863132,1.1686041,47316.0,47315.0,0.12869962]
[1641066863332,1.14997734,47316.0,47315.0,0.12869962]
[1641066863533,1.16842202,47316.0,47315.0,0.12869962]
[1641066864337,1.13,47316.0,47315.0,0.12869962]
[1641066864537,1.14965196,47316.0,47315.0,0.12869962]
[1641066865675,1.16961428,47316.0,47315.0,0.12869962]
[1641066865879,1.14996232,47316.0,47315.0,0.12869962]
[1641066866679,1.17105865,47316.0,47315.0,0.12869962]
[1641066866877,1.15109633,47316.0,47315.0,0.12869962]
[1641066867677,1.17062988,47316.0,47315.0,0.12869962]
[1641066867979,1.14953355,47316.0,47315.0,0.12869962]
[1641066868583,1.16800083,47316.0,47315.0,0.12869962]
[1641066868879,1.14846728,47316.0,47315.0,0.12869962]
[1641066870315,1.16875938,47316.0,47315.0,0.12869962]
[1641066870514,1.1502921,47316.0,47315.0,0.12869962]
[1641066870715,1.17061685,47316.0,47315.0,0.12869962]
[1641066870914,1.15032475,47316.0,47315.0,0.12869962]
[1641066871715,1.17228104,47316.0,47315.0,0.12869962]
[1641066871915,1.15195629,47316.0,47315.0,0.46868197]
[1641066872116,0.02195629,47316.0,47315.0,0.46868197]
[1641066872517,0.62195629,47316.0,47315.0,0.46868197]
[1641066872887,0.62044469,47316.0,47315.0,0.46868197]
[1641066873679,0.64086386,47316.0,47315.0,0.46868197]
[1641066873879,0.62041917,47316.0,47315.0,0.46868197]
[1641066874380,0.92041917,47316.0,47315.0,0.46868197]
[1641066874580,0.62041917,47316.0,47315.0,0.46868197]
[1641066874781,0.63693758,47316.0,47315.0,0.12869962]
[1641066874983,0.61651841,47316.0,47315.0,0.12869962]
[1641066875681,0.63457256,47316.0,47315.0,0.12869962]
[1641066875881,0.61305415,47316.0,47315.0,0.12869962]
[1641066876081,0.01805415,47316.0,47315.0,0.12869962]
[1641066876482,0.31805415,47316.0,47315.0,0.4710474]
[1641066876945,0.3,47316.0,47315.0,0.4710474]
[1641066877849,0.32104648,47316.0,47315.0,0.4710474]
[1641066878647,0.34133912,47316.0,47315.0,0.4710474]
[1641066878848,0.32029264,47316.0,47315.0,0.4710474]
[1641066879049,0.32029264,47316.0,47315.0,0.47097437]
[1641066879650,0.34089371,47316.0,47315.0,0.12862659]
[1641066880055,0.32060107,47316.0,47315.0,0.12862659]
[1641066880670,0.34109052,47316.0,47315.0,0.12862659]
[1641066881070,0.32048945,47316.0,47315.0,0.12862659]
[1641066881768,0.34178936,47316.0,47315.0,0.12862659]
[1641066881969,0.32129991,47316.0,47315.0,0.12862659]
[1641066882870,0.29468939,47316.0,47315.0,0.12862659]
[1641066883972,0.2734,47316.0,47315.0,0.12862659]
[1641066884827,0.2734,47316.0,47315.0,0.34748358]
[1641066885329,0.2734,47316.0,47315.0,0.12862659]
[1641066886327,0.6134,47316.0,47315.0,0.12862659]
[1641066887130,0.2734,47316.0,47315.0,0.12862659]
[1641066891276,0.6434,47316.0,47315.0,0.12862659]
[1641066891933,0.2734,47316.0,47315.0,0.12862659]
[1641066895387,0.5734,47316.0,47315.0,0.12862659]
[1641066896883,0.59496093,47316.0,47315.0,0.12862659]
[1641066897083,0.29496093,47316.0,47315.0,0.12862659]
[1641066897787,0.2734,47316.0,47315.0,0.12862659]
[1641066898585,0.65391177,47316.0,47315.0,0.12862659]
[1641066899933,0.67543006,47316.0,47315.0,0.12862659]
[1641066900936,0.42278906,47316.0,47315.0,0.12862659]
[1641066901135,0.42278906,47316.0,47315.0,0.34150805]
[1641066901734,0.38051177,47316.0,47315.0,0.34150805]
[1641066901934,0.40053945,47316.0,47315.0,0.34150805]
[1641066902975,0.42087341,47316.0,47315.0,0.34150805]
[1641066903175,0.40084573,47316.0,47315.0,0.34150805]
[1641066903774,0.40084573,47316.0,47315.0,0.12862659]
[1641066903975,0.42034941,47316.0,47315.0,0.12862659]
[1641066904177,0.40001545,47316.0,47315.0,0.12862659]
[1641066904776,0.40001545,47316.0,47315.0,0.12869962]
[1641066905075,0.39853297,47316.0,47315.0,0.12869962]
[1641066905478,0.39853297,47316.0,47315.0,0.34788187]
[1641066905878,0.41996654,47316.0,47315.0,0.98192187]
[1641066906082,0.40194534,47316.0,47315.0,1.32155687]
[1641066906479,0.40194534,47316.0,47315.0,1.10237462]
[1641066906941,0.42279441,47316.0,47315.0,1.10237462]
[1641066907744,0.42279441,47316.0,47315.0,1.47341452]
[1641066907944,0.4434414,47316.0,47315.0,1.47341452]
[1641066908143,0.40115876,47316.0,47315.0,1.47341452]
[1641066909141,0.42170383,47316.0,47315.0,1.47341452]
[1641066909342,0.40105684,47316.0,47315.0,1.47341452]
[1641066910044,0.4211554,47316.0,47315.0,1.47341452]
[1641066910243,0.40061033,47316.0,47315.0,1.47341452]
[1641066911084,0.4188277,47316.0,47315.0,1.47341452]
[1641066911285,0.39872914,47316.0,47315.0,1.47341452]
[1641066912284,0.39872914,47316.0,47315.0,1.10237462]
[1641066912585,0.42002733,47316.0,47315.0,1.10237462]
[1641066912783,0.40180996,47316.0,47315.0,1.10237462]
[1641066913183,0.42074605,47316.0,47315.0,1.44456777]
[1641066913383,0.39944786,47316.0,47315.0,1.44456777]
[1641066914622,0.42127481,47316.0,47315.0,1.44456777]
[1641066914819,0.40233872,47316.0,47315.0,1.44456777]
[1641066915622,0.42362747,47316.0,47315.0,1.44456777]
[1641066916426,0.38051177,47316.0,47315.0,1.44456777]
[1641066916628,0.40095927,47316.0,47315.0,1.44456777]
[1641066917028,0.41977589,47316.0,47315.0,1.44456777]
[1641066917228,0.39932839,47316.0,47315.0,1.44456777]
[1641066918174,0.41875925,47316.0,47315.0,1.44456777]
[1641066918373,0.39994263,47316.0,47315.0,1.44456777]
[1641066918978,0.39994263,47316.0,47315.0,1.50376394]
[1641066919176,0.41918019,47316.0,47315.0,1.95151139]
[1641066919375,0.39974933,47316.0,47315.0,1.95151139]
[1641066919576,0.00925517,47323.0,47319.0,0.03168736]
[1641066919774,0.00925517,47323.0,47322.0,0.46949644]
[1641066919976,0.00925517,47323.0,47322.0,1.50064644]
[1641066920174,0.00932821,47323.0,47322.0,1.50064644]
[1641066920374,7.304e-05,47323.0,47322.0,1.50064644]
[1641066920976,7.304e-05,47323.0,47322.0,1.55346044]
[1641066921175,7.304e-05,47323.0,47322.0,1.57313242]
[1641066921375,7.304e-05,47323.0,47322.0,2.01173837]
[1641066921833,0.00437915,47328.0,47322.0,2.01173837]
[1641066922033,0.00437915,47328.0,47327.0,0.37923764]
[1641066922235,0.052815,47331.0,47327.0,1.7725328]
[1641066922433,0.052815,47331.0,47330.0,0.12862659]
[1641066923635,0.052815,47331.0,47330.0,0.47484926]
[1641066924033,0.052815,47331.0,47330.0,0.12862659]
[1641066926577,0.052815,47331.0,47330.0,0.46336122]
[1641066928176,0.052815,47331.0,47330.0,0.48500878]
[1641066929218,0.052815,47331.0,47330.0,0.50401166]
[1641066929421,0.052815,47331.0,47330.0,0.4823641]
[1641066930324,0.052815,47331.0,47330.0,0.15046711]
[1641066931427,0.052815,47331.0,47330.0,0.12862659]
[1641066934694,0.052815,47331.0,47330.0,0.06411543]
[1641066935290,0.00124509,47336.0,47332.0,0.052814]
[1641066935691,0.00020083,47334.0,47332.0,0.052814]
[1641066935892,0.00020083,47334.0,47333.0,0.06411543]
[1641066936090,0.00124509,47336.0,47333.0,0.06411543]
[1641066936290,0.00124509,47336.0,47331.0,0.105627]
[1641066936490,0.00021909,47335.0,47331.0,0.105627]
[1641066936724,0.96021909,47335.0,47334.0,0.06411543]
[1641066936925,0.96,47335.0,47334.0,0.06411543]
[1641066938326,0.97966286,47335.0,47334.0,0.06411543]
[1641066938725,1.14966286,47335.0,47334.0,0.06411543]
[1641066939126,0.97966286,47335.0,47334.0,0.06411543]
[1641066939329,0.9983941,47335.0,47334.0,0.06411543]
[1641066939528,0.96,47335.0,47334.0,0.06411543]
[1641066940392,0.98116442,47335.0,47334.0,0.06411543]
[1641066941287,1.00129501,47335.0,47334.0,0.06411543]
[1641066942088,0.96,47335.0,47334.0,0.06411543]
[1641066942289,0.98052563,47335.0,47334.0,0.06411543]
[1641066943288,1.00216439,47335.0,47334.0,0.06411543]
[1641066943488,0.98163876,47335.0,47334.0,0.06411543]
[1641066944262,1.00166547,47335.0,47334.0,0.06411543]
[1641066944463,0.98002671,47335.0,47334.0,0.06411543]
[1641066945266,0.99863228,47335.0,47334.0,0.06411543]
[1641066945463,0.97860557,47335.0,47334.0,0.06411543]
[1641066945663,0.97860557,47335.0,47333.0,0.052815]
[1641066945865,1.13,47334.0,47333.0,0.052815]
[1641066946065,1.13020083,47334.0,47333.0,0.052815]
[1641066946866,0.00020083,47334.0,47333.0,0.202815]
[1641066947364,0.0189713,47334.0,47333.0,0.202815]
[1641066947566,0.9889713,47334.0,47333.0,0.202815]
[1641066947989,0.0189713,47334.0,47333.0,0.202815]
[1641066948192,0.0189713,47334.0,47333.0,0.54943943]
[1641066948395,0.03877253,47334.0,47333.0,0.54943943]
[1641066948592,0.02000206,47334.0,47333.0,0.54943943]
[1641066948789,0.02000206,47334.0,47333.0,1.17625]
[1641066949190,0.02000206,47334.0,47333.0,1.41949794]
[1641066949592,0.00020083,47334.0,47333.0,1.41949794]
[1641066950491,0.00020083,47334.0,47333.0,1.82427469]
[1641066950895,0.00020083,47334.0,47333.0,2.11314385]
[1641066951194,0.0093059,47339.0,47336.0,0.052796]
[1641066951393,0.0093059,47339.0,47337.0,0.973385]
[1641066951644,7.303e-05,47338.0,47337.0,0.973385]
[1641066952045,7.303e-05,47338.0,47337.0,1.176195]
[1641066953847,7.303e-05,47338.0,47337.0,1.026195]
[1641066954246,7.303e-05,47338.0,47337.0,0.68656]
[1641066954447,7.303e-05,47338.0,47337.0,1.07656]
[1641066955047,7.303e-05,47338.0,47337.0,1.566195]